[Event "Betsys MČR v online bleskovém šachu 2021"]
[Site "Chess.com"]
[Date "2021.04.17"]
[Round "2"]
[White "Tah_na_g12"]
[Black "DavidZidlicky"]
[Result "0-1"]
[WhiteElo "1178"]
[BlackElo "1709"]
[TimeControl "180+1"]
[EndTime "9:14:13 PDT"]
[Termination "Uživatel DavidZidlicky zvítězil matem"]

1. d4 {[%clk 0:03:00.9]} 1... d5 {[%clk 0:02:32.6]} 2. c4 {[%clk 0:02:57.5]}
2... dxc4 {[%clk 0:02:31.9]} 3. e4 {[%clk 0:02:56.2]} 3... e6 {[%clk 0:02:30.4]}
4. Bxc4 {[%clk 0:02:55]} 4... Nf6 {[%clk 0:02:30.4]} 5. Nc3 {[%clk 0:02:52.9]}
5... Bb4 {[%clk 0:02:29.2]} 6. Qb3 {[%clk 0:02:42.3]} 6... Bxc3+ {[%clk
0:02:27.1]} 7. bxc3 {[%clk 0:02:39.3]} 7... Nxe4 {[%clk 0:02:24.2]} 8. Nf3
{[%clk 0:02:30.6]} 8... Nd6 {[%clk 0:02:20.7]} 9. Bb5+ {[%clk 0:02:28.3]} 9...
c6 {[%clk 0:02:19.8]} 10. Ba4 {[%clk 0:02:21.2]} 10... b5 {[%clk 0:02:18.3]} 11.
Bxb5 {[%clk 0:02:17.4]} 11... cxb5 {[%clk 0:02:17.9]} 12. Ne5 {[%clk 0:02:16.4]}
12... O-O {[%clk 0:02:11.8]} 13. O-O {[%clk 0:02:13.8]} 13... a6 {[%clk
0:02:00.2]} 14. Bg5 {[%clk 0:02:06.3]} 14... f6 {[%clk 0:01:56.9]} 15. Bxf6
{[%clk 0:02:04.7]} 15... Rxf6 {[%clk 0:01:52.9]} 16. f4 {[%clk 0:02:02.4]} 16...
Qc7 {[%clk 0:01:38.6]} 17. g4 {[%clk 0:01:58.6]} 17... Nc4 {[%clk 0:01:33.8]}
18. f5 {[%clk 0:01:52.5]} 18... Nxe5 {[%clk 0:01:32]} 19. dxe5 {[%clk
0:01:50.3]} 19... Qxe5 {[%clk 0:01:30]} 20. fxe6 {[%clk 0:01:49.3]} 20... Qe3+
{[%clk 0:01:26.3]} 21. Kh1 {[%clk 0:01:47.4]} 21... Bb7+ {[%clk 0:01:26.2]} 22.
Rf3 {[%clk 0:01:43.7]} 22... Bxf3# {[%clk 0:01:24.9]} 0-1

[Event "Betsys MČR v online bleskovém šachu 2021"]
[Site "Chess.com"]
[Date "2021.04.17"]
[Round "2"]
[White "lupinek23"]
[Black "matycz07"]
[Result "0-1"]
[WhiteElo "1609"]
[BlackElo "998"]
[TimeControl "180+1"]
[EndTime "9:14:21 PDT"]
[Termination "Uživatel matycz07 zvítězil po vzdání soupeře"]

1. e4 {[%clk 0:02:26.2]} 1... e5 {[%clk 0:02:58.4]} 2. Nf3 {[%clk 0:02:26.1]}
2... Nc6 {[%clk 0:02:58.1]} 3. d4 {[%clk 0:02:26.2]} 3... Bd6 {[%clk 0:02:52]}
4. d5 {[%clk 0:02:25.4]} 4... Nd4 {[%clk 0:02:51.2]} 5. c3 {[%clk 0:02:24.3]}
5... Nxf3+ {[%clk 0:02:50.7]} 6. Qxf3 {[%clk 0:02:23.5]} 6... Bc5 {[%clk
0:02:48.2]} 7. Bc4 {[%clk 0:02:23.2]} 7... d6 {[%clk 0:02:47.5]} 8. O-O {[%clk
0:02:23]} 8... Nf6 {[%clk 0:02:46.9]} 9. Be3 {[%clk 0:02:22.8]} 9... Bg4 {[%clk
0:02:43.4]} 10. Qg3 {[%clk 0:02:22.1]} 10... Bxe3 {[%clk 0:02:42.9]} 11. fxe3
{[%clk 0:02:21.1]} 11... O-O {[%clk 0:02:37.6]} 12. h3 {[%clk 0:02:21.1]} 12...
Nh5 {[%clk 0:02:30.8]} 13. Qh2 {[%clk 0:02:19.2]} 13... Bd7 {[%clk 0:02:26.3]}
14. Nd2 {[%clk 0:02:17.4]} 14... c6 {[%clk 0:02:17.9]} 15. Nf3 {[%clk
0:02:15.1]} 15... cxd5 {[%clk 0:02:17.6]} 16. exd5 {[%clk 0:02:13.5]} 16... Qc7
{[%clk 0:02:12.5]} 17. Bd3 {[%clk 0:02:12.7]} 17... Qc5 {[%clk 0:02:07.1]} 18.
Rae1 {[%clk 0:02:10.8]} 18... Qxd5 {[%clk 0:02:05.9]} 19. Rd1 {[%clk 0:02:08.7]}
19... e4 {[%clk 0:02:01.8]} 20. Bxe4 {[%clk 0:01:52.9]} 20... Qxe4 {[%clk
0:02:01.4]} 21. Qxd6 {[%clk 0:01:52.8]} 21... Ng3 {[%clk 0:01:55.8]} 22. Qxd7
{[%clk 0:01:49.7]} 22... Nxf1 {[%clk 0:01:55.4]} 23. Rxf1 {[%clk 0:01:49.8]}
23... Qxe3+ {[%clk 0:01:54.7]} 24. Kh1 {[%clk 0:01:48.7]} 24... Rad8 {[%clk
0:01:54.7]} 25. Qxb7 {[%clk 0:01:45.4]} 25... Qe2 {[%clk 0:01:53.1]} 26. Ng5
{[%clk 0:01:44.5]} 26... Qxf1+ {[%clk 0:01:52]} 27. Kh2 {[%clk 0:01:43.8]} 27...
h6 {[%clk 0:01:50.3]} 28. Ne6 {[%clk 0:01:38.8]} 28... fxe6 {[%clk 0:01:49.6]}
29. Qc6 {[%clk 0:01:39]} 29... Rd2 {[%clk 0:01:47.8]} 30. Qxe6+ {[%clk
0:01:38.4]} 30... Kh7 {[%clk 0:01:46.7]} 0-1

[Event "Betsys MČR v online bleskovém šachu 2021"]
[Site "Chess.com"]
[Date "2021.04.17"]
[Round "2"]
[White "zaciname"]
[Black "Klapuch05"]
[Result "0-1"]
[WhiteElo "709"]
[BlackElo "1534"]
[TimeControl "180+1"]
[EndTime "9:14:25 PDT"]
[Termination "Uživatel Klapuch05 zvítězil matem"]

1. e4 {[%clk 0:03:00.9]} 1... c5 {[%clk 0:02:59.6]} 2. Nf3 {[%clk 0:03:00.4]}
2... d6 {[%clk 0:02:59.9]} 3. d4 {[%clk 0:03:00.9]} 3... cxd4 {[%clk 0:03:00.2]}
4. Nxd4 {[%clk 0:03:01]} 4... Nf6 {[%clk 0:03:00.6]} 5. Nc3 {[%clk 0:03:01.3]}
5... g6 {[%clk 0:03:00.4]} 6. Bg5 {[%clk 0:03:00.8]} 6... Bg7 {[%clk 0:03:00.2]}
7. Bd3 {[%clk 0:02:59.3]} 7... O-O {[%clk 0:02:59.8]} 8. O-O {[%clk 0:02:56.9]}
8... Nc6 {[%clk 0:02:59.8]} 9. Nf3 {[%clk 0:02:53.9]} 9... Be6 {[%clk
0:02:56.6]} 10. Qd2 {[%clk 0:02:52]} 10... Rc8 {[%clk 0:02:46.4]} 11. Bh6 {[%clk
0:02:50.9]} 11... a6 {[%clk 0:02:46.4]} 12. a3 {[%clk 0:02:46.5]} 12... Ng4
{[%clk 0:02:36.3]} 13. Be3 {[%clk 0:02:41.9]} 13... Nxe3 {[%clk 0:02:35.6]} 14.
Qxe3 {[%clk 0:02:40.1]} 14... Ne5 {[%clk 0:02:28.2]} 15. Nxe5 {[%clk 0:02:36.6]}
15... Bxe5 {[%clk 0:02:29.1]} 16. Rab1 {[%clk 0:02:27.7]} 16... Qc7 {[%clk
0:02:27.2]} 17. Ne2 {[%clk 0:02:25.5]} 17... Rfd8 {[%clk 0:02:18]} 18. Rfc1
{[%clk 0:02:24.8]} 18... d5 {[%clk 0:02:15.9]} 19. Nf4 {[%clk 0:02:19.5]} 19...
Bxf4 {[%clk 0:02:15]} 20. Qxf4 {[%clk 0:02:18.2]} 20... Qxf4 {[%clk 0:02:15.6]}
21. f3 {[%clk 0:02:15.5]} 21... dxe4 {[%clk 0:02:14.8]} 22. Bxe4 {[%clk
0:02:12.6]} 22... Rd2 {[%clk 0:02:06.9]} 23. Rd1 {[%clk 0:02:03]} 23... Qe3+
{[%clk 0:02:04.9]} 24. Kh1 {[%clk 0:01:50.2]} 24... Qf2 {[%clk 0:02:03.8]} 25.
Rg1 {[%clk 0:01:47]} 25... Bf5 {[%clk 0:01:56.9]} 26. Rbf1 {[%clk 0:01:46.1]}
26... Bxe4 {[%clk 0:01:43.8]} 27. Rxf2 {[%clk 0:01:43]} 27... Rxf2 {[%clk
0:01:44.7]} 28. Re1 {[%clk 0:01:38.4]} 28... Rcxc2 {[%clk 0:01:40.8]} 29. Kg1
{[%clk 0:01:36.7]} 29... Rxg2+ {[%clk 0:01:40.2]} 30. Kf1 {[%clk 0:01:35.1]}
30... Rcf2# {[%clk 0:01:39.7]} 0-1

[Event "Betsys MČR v online bleskovém šachu 2021"]
[Site "Chess.com"]
[Date "2021.04.17"]
[Round "2"]
[White "karimaster100"]
[Black "Pekibeast"]
[Result "1-0"]
[WhiteElo "2190"]
[BlackElo "1859"]
[TimeControl "180+1"]
[EndTime "9:14:34 PDT"]
[Termination "Uživatel karimaster100 zvítězil po vzdání soupeře"]

1. Nf3 {[%clk 0:03:00.9]} 1... g6 {[%clk 0:02:54.5]} 2. g3 {[%clk 0:03:00.5]}
2... Bg7 {[%clk 0:02:55.4]} 3. d4 {[%clk 0:03:00.3]} 3... Nf6 {[%clk 0:02:55.5]}
4. Bg2 {[%clk 0:02:59.3]} 4... c6 {[%clk 0:02:55.3]} 5. c4 {[%clk 0:02:58.2]}
5... O-O {[%clk 0:02:53.1]} 6. O-O {[%clk 0:02:57]} 6... d5 {[%clk 0:02:51.2]}
7. b3 {[%clk 0:02:57.5]} 7... Re8 {[%clk 0:02:48.4]} 8. Bb2 {[%clk 0:02:57.4]}
8... Na6 {[%clk 0:02:46]} 9. Nc3 {[%clk 0:02:54.3]} 9... Nc7 {[%clk 0:02:45.6]}
10. Rc1 {[%clk 0:02:52]} 10... Qd6 {[%clk 0:02:40]} 11. Nd2 {[%clk 0:02:45.3]}
11... Bf5 {[%clk 0:02:30]} 12. Re1 {[%clk 0:02:40.9]} 12... Bh6 {[%clk
0:02:11.6]} 13. e3 {[%clk 0:02:37.9]} 13... a6 {[%clk 0:02:06.7]} 14. Qe2 {[%clk
0:02:37.4]} 14... Bg4 {[%clk 0:01:59.7]} 15. f3 {[%clk 0:02:36.3]} 15... Bf5
{[%clk 0:01:55]} 16. Rcd1 {[%clk 0:02:25.6]} 16... Qd8 {[%clk 0:01:41]} 17. Kh1
{[%clk 0:02:21.2]} 17... e5 {[%clk 0:01:22.5]} 18. dxe5 {[%clk 0:02:19.5]} 18...
Rxe5 {[%clk 0:01:23.4]} 19. e4 {[%clk 0:02:18.7]} 19... dxe4 {[%clk 0:01:20.1]}
20. Ndxe4 {[%clk 0:02:18.5]} 20... Qe7 {[%clk 0:01:18.9]} 21. Nxf6+ {[%clk
0:02:15.8]} 21... Qxf6 {[%clk 0:01:19.8]} 22. Qxe5 {[%clk 0:02:15.7]} 22... Qxe5
{[%clk 0:01:20.1]} 23. Rxe5 {[%clk 0:02:14.1]} 23... Bg7 {[%clk 0:01:20.4]} 24.
Ree1 {[%clk 0:02:11.9]} 24... Ne6 {[%clk 0:01:19.1]} 25. Ba1 {[%clk 0:02:10.7]}
25... Nd4 {[%clk 0:01:17.7]} 26. g4 {[%clk 0:02:07.8]} 26... Be6 {[%clk
0:01:16.5]} 27. Ne4 {[%clk 0:02:08.1]} 27... Rd8 {[%clk 0:01:14.9]} 28. Bxd4
{[%clk 0:02:04.8]} 28... Bxd4 {[%clk 0:01:14.9]} 29. Rd3 {[%clk 0:01:58.7]}
29... c5 {[%clk 0:01:15.1]} 30. Nxc5 {[%clk 0:01:57.2]} 1-0

[Event "Betsys MČR v online bleskovém šachu 2021"]
[Site "Chess.com"]
[Date "2021.04.17"]
[Round "2"]
[White "MartinHollan"]
[Black "florenc1330"]
[Result "1-0"]
[WhiteElo "2579"]
[BlackElo "2086"]
[TimeControl "180+1"]
[EndTime "9:14:39 PDT"]
[Termination "Uživatel MartinHollan zvítězil po vzdání soupeře"]

1. e4 {[%clk 0:03:00.9]} 1... d5 {[%clk 0:02:56.4]} 2. exd5 {[%clk 0:03:00.4]}
2... Qxd5 {[%clk 0:02:56.2]} 3. Nc3 {[%clk 0:03:00]} 3... Qa5 {[%clk 0:02:55.9]}
4. Nf3 {[%clk 0:02:59.2]} 4... Nf6 {[%clk 0:02:55.9]} 5. d4 {[%clk 0:02:59]}
5... Bg4 {[%clk 0:02:55.9]} 6. Bc4 {[%clk 0:02:54.7]} 6... Nc6 {[%clk
0:02:54.9]} 7. h3 {[%clk 0:02:40.5]} 7... Qh5 {[%clk 0:02:52.5]} 8. Be3 {[%clk
0:02:31.4]} 8... O-O-O {[%clk 0:02:51.2]} 9. Be2 {[%clk 0:02:28.1]} 9... e5
{[%clk 0:02:49.8]} 10. Rf1 {[%clk 0:02:13.7]} 10... Bxf3 {[%clk 0:02:34.6]} 11.
Bxf3 {[%clk 0:02:13.6]} 11... Qg6 {[%clk 0:02:34.6]} 12. Bxc6 {[%clk 0:02:09]}
12... bxc6 {[%clk 0:02:34.6]} 13. Qe2 {[%clk 0:01:32.7]} 13... exd4 {[%clk
0:02:17.4]} 14. O-O-O {[%clk 0:01:25.6]} 14... Bc5 {[%clk 0:01:55.4]} 15. Na4
{[%clk 0:01:25]} 15... dxe3 {[%clk 0:01:48.9]} 16. Qa6+ {[%clk 0:01:24.1]} 16...
Kb8 {[%clk 0:01:48.4]} 17. Nxc5 {[%clk 0:01:24.3]} 1-0

[Event "Betsys MČR v online bleskovém šachu 2021"]
[Site "Chess.com"]
[Date "2021.04.17"]
[Round "2"]
[White "JohnnyDuck64"]
[Black "viklan"]
[Result "1-0"]
[WhiteElo "2133"]
[BlackElo "1573"]
[TimeControl "180+1"]
[EndTime "9:14:39 PDT"]
[Termination "Uživatel JohnnyDuck64 zvítězil po vzdání soupeře"]

1. e4 {[%clk 0:02:59.3]} 1... c5 {[%clk 0:02:59.1]} 2. Nf3 {[%clk 0:02:57.9]}
2... d6 {[%clk 0:02:59.2]} 3. d4 {[%clk 0:02:57.5]} 3... cxd4 {[%clk 0:02:59.2]}
4. Nxd4 {[%clk 0:02:58.4]} 4... Nf6 {[%clk 0:02:59.4]} 5. Nc3 {[%clk 0:02:57.7]}
5... a6 {[%clk 0:03:00.3]} 6. Bg5 {[%clk 0:02:56.2]} 6... e6 {[%clk 0:02:58.5]}
7. f4 {[%clk 0:02:54.1]} 7... Nbd7 {[%clk 0:02:57.7]} 8. Qf3 {[%clk 0:02:53.3]}
8... Qc7 {[%clk 0:02:56.2]} 9. O-O-O {[%clk 0:02:51.3]} 9... b5 {[%clk
0:02:55.1]} 10. Bxb5 {[%clk 0:02:50.5]} 10... axb5 {[%clk 0:02:54.3]} 11. Ndxb5
{[%clk 0:02:50.3]} 11... Qb6 {[%clk 0:02:36.5]} 12. e5 {[%clk 0:02:49.4]} 12...
Bb7 {[%clk 0:02:32.1]} 13. Qe2 {[%clk 0:02:49.1]} 13... Nd5 {[%clk 0:02:25.4]}
14. Nxd5 {[%clk 0:02:33.8]} 14... Bxd5 {[%clk 0:02:24.1]} 15. Rxd5 {[%clk
0:02:27.5]} 15... exd5 {[%clk 0:02:14.2]} 16. exd6+ {[%clk 0:02:25.9]} 16... Ne5
{[%clk 0:01:40.2]} 17. Nc7+ {[%clk 0:02:08.6]} 17... Kd7 {[%clk 0:01:30.4]} 18.
Nxa8 {[%clk 0:02:05.6]} 18... Qxd6 {[%clk 0:01:21.2]} 19. fxe5 {[%clk
0:02:02.2]} 19... Qc6 {[%clk 0:01:19.3]} 20. Qg4+ {[%clk 0:01:46.6]} 20... Ke8
{[%clk 0:01:06.4]} 21. Nb6 {[%clk 0:01:45]} 21... Qxb6 {[%clk 0:01:03.8]} 22.
Qc8+ {[%clk 0:01:43.1]} 1-0

[Event "Betsys MČR v online bleskovém šachu 2021"]
[Site "Chess.com"]
[Date "2021.04.17"]
[Round "2"]
[White "Joanna23W"]
[Black "ReceptiveYoyo"]
[Result "1-0"]
[WhiteElo "2683"]
[BlackElo "1314"]
[TimeControl "180+1"]
[EndTime "9:14:44 PDT"]
[Termination "Uživatel Joanna23W zvítězil po vzdání soupeře"]

1. e4 {[%clk 0:03:00.9]} 1... c5 {[%clk 0:02:59.8]} 2. Nf3 {[%clk 0:03:00.3]}
2... d6 {[%clk 0:02:59.1]} 3. d4 {[%clk 0:02:59.6]} 3... cxd4 {[%clk 0:03:00]}
4. Nxd4 {[%clk 0:02:59.8]} 4... Nc6 {[%clk 0:03:00.7]} 5. Nc3 {[%clk 0:02:58.9]}
5... g6 {[%clk 0:02:52.5]} 6. Be3 {[%clk 0:02:57.9]} 6... Bg7 {[%clk 0:02:51.4]}
7. Qd2 {[%clk 0:02:58.1]} 7... Nf6 {[%clk 0:02:49.3]} 8. f3 {[%clk 0:02:55.9]}
8... O-O {[%clk 0:02:48.3]} 9. g4 {[%clk 0:02:55.3]} 9... d5 {[%clk 0:02:42.4]}
10. Nxc6 {[%clk 0:02:52.4]} 10... bxc6 {[%clk 0:02:41.5]} 11. O-O-O {[%clk
0:02:48.1]} 11... dxe4 {[%clk 0:02:38.7]} 12. Qxd8 {[%clk 0:02:47.2]} 12... exf3
{[%clk 0:02:28.8]} 13. Qxe7 {[%clk 0:02:44.4]} 13... Bxg4 {[%clk 0:02:26.5]} 14.
Bc4 {[%clk 0:02:42.1]} 14... Rae8 {[%clk 0:02:20.9]} 15. Qc5 {[%clk 0:02:40.4]}
15... f2 {[%clk 0:02:18.3]} 16. Rdf1 {[%clk 0:02:25.6]} 16... Bf3 {[%clk
0:02:12]} 17. Bxf2 {[%clk 0:02:21.5]} 17... Bxh1 {[%clk 0:02:11.4]} 18. Rxh1
{[%clk 0:02:21.5]} 18... Ne4 {[%clk 0:01:59.8]} 19. Nxe4 {[%clk 0:02:20.7]}
19... Rxe4 {[%clk 0:02:00.7]} 20. Bg3 {[%clk 0:02:13.4]} 20... Bh6+ {[%clk
0:01:49.7]} 21. Kb1 {[%clk 0:02:12.7]} 21... Rfe8 {[%clk 0:01:47.8]} 22. Qxc6
{[%clk 0:02:08]} 22... Be3 {[%clk 0:01:24.5]} 23. a3 {[%clk 0:02:04.7]} 23...
Bd4 {[%clk 0:01:18.8]} 24. Rf1 {[%clk 0:02:03.5]} 24... Kh8 {[%clk 0:01:10.7]}
25. Bxf7 {[%clk 0:02:01.2]} 25... Rf8 {[%clk 0:00:55.2]} 26. Qxe4 {[%clk
0:01:56.1]} 1-0

[Event "Betsys MČR v online bleskovém šachu 2021"]
[Site "Chess.com"]
[Date "2021.04.17"]
[Round "2"]
[White "MartinCerveny"]
[Black "kecalk"]
[Result "0-1"]
[WhiteElo "2651"]
[BlackElo "2147"]
[TimeControl "180+1"]
[EndTime "9:14:45 PDT"]
[Termination "Uživatel kecalk zvítězil po vzdání soupeře"]

1. d4 {[%clk 0:03:00.9]} 1... d5 {[%clk 0:02:57.2]} 2. c4 {[%clk 0:03:00.9]}
2... e6 {[%clk 0:02:57.3]} 3. Nc3 {[%clk 0:03:00.8]} 3... Nf6 {[%clk 0:02:57]}
4. cxd5 {[%clk 0:03:01]} 4... exd5 {[%clk 0:02:52.2]} 5. Bg5 {[%clk 0:03:00.8]}
5... Be7 {[%clk 0:02:51.5]} 6. e3 {[%clk 0:03:00.9]} 6... c6 {[%clk 0:02:51.3]}
7. Bd3 {[%clk 0:03:00.8]} 7... Nbd7 {[%clk 0:02:51.1]} 8. Qc2 {[%clk 0:03:00.5]}
8... h6 {[%clk 0:02:49.4]} 9. Bh4 {[%clk 0:03:00]} 9... Nh5 {[%clk 0:02:49.2]}
10. Bxe7 {[%clk 0:02:59.8]} 10... Qxe7 {[%clk 0:02:48.2]} 11. Nf3 {[%clk
0:02:59.9]} 11... Nf4 {[%clk 0:02:47.3]} 12. O-O {[%clk 0:02:59.9]} 12... Nxd3
{[%clk 0:02:42.3]} 13. Qxd3 {[%clk 0:03:00.8]} 13... O-O {[%clk 0:02:37.4]} 14.
a3 {[%clk 0:03:01]} 14... a5 {[%clk 0:02:35.2]} 15. h3 {[%clk 0:02:59.3]} 15...
Re8 {[%clk 0:02:19.1]} 16. Rfe1 {[%clk 0:02:58]} 16... Nb6 {[%clk 0:02:17.5]}
17. Ne5 {[%clk 0:02:50.9]} 17... f6 {[%clk 0:02:14]} 18. Ng6 {[%clk 0:02:43.7]}
18... Qf7 {[%clk 0:02:10.9]} 19. b3 {[%clk 0:02:37.6]} 19... Bd7 {[%clk
0:01:51.3]} 20. a4 {[%clk 0:02:35.5]} 20... Nc8 {[%clk 0:01:47.2]} 21. f3 {[%clk
0:02:09.1]} 21... Nd6 {[%clk 0:01:46.5]} 22. g4 {[%clk 0:02:04.3]} 22... Ne4
{[%clk 0:01:22.9]} 23. Nxe4 {[%clk 0:02:03.5]} 23... dxe4 {[%clk 0:01:15]} 24.
Qc4 {[%clk 0:01:57]} 24... Be6 {[%clk 0:01:12.7]} 25. Qc2 {[%clk 0:01:51.7]}
25... Qxg6 {[%clk 0:01:09.5]} 26. fxe4 {[%clk 0:01:51.6]} 26... Bd7 {[%clk
0:01:09.4]} 27. Rac1 {[%clk 0:01:47.9]} 27... Rxe4 {[%clk 0:01:08.7]} 0-1

[Event "Betsys MČR v online bleskovém šachu 2021"]
[Site "Chess.com"]
[Date "2021.04.17"]
[Round "2"]
[White "JuliliaR"]
[Black "krajic001"]
[Result "0-1"]
[WhiteElo "1328"]
[BlackElo "1841"]
[TimeControl "180+1"]
[EndTime "9:14:45 PDT"]
[Termination "Uživatel krajic001 zvítězil matem"]

1. d4 {[%clk 0:03:00.9]} 1... Nf6 {[%clk 0:02:58.2]} 2. c4 {[%clk 0:02:58.9]}
2... e5 {[%clk 0:02:57.2]} 3. dxe5 {[%clk 0:02:55.7]} 3... Ng4 {[%clk
0:02:55.9]} 4. Bf4 {[%clk 0:02:51]} 4... Nc6 {[%clk 0:02:49.6]} 5. Nf3 {[%clk
0:02:50.7]} 5... Bb4+ {[%clk 0:02:44.1]} 6. Nc3 {[%clk 0:02:47.8]} 6... Qe7
{[%clk 0:02:40.8]} 7. Qd5 {[%clk 0:02:40.5]} 7... Bxc3+ {[%clk 0:02:35.3]} 8.
bxc3 {[%clk 0:02:39.4]} 8... O-O {[%clk 0:02:24.3]} 9. h3 {[%clk 0:02:28.5]}
9... Nh6 {[%clk 0:02:21.1]} 10. Bxh6 {[%clk 0:02:21]} 10... gxh6 {[%clk
0:02:19.7]} 11. e3 {[%clk 0:02:16.5]} 11... d6 {[%clk 0:02:15.9]} 12. exd6
{[%clk 0:02:06.7]} 12... Qxd6 {[%clk 0:02:11.7]} 13. Qh5 {[%clk 0:01:56.1]}
13... Qg6 {[%clk 0:02:00]} 14. Qd5 {[%clk 0:01:43.9]} 14... Rd8 {[%clk
0:01:50.9]} 15. Qc5 {[%clk 0:01:22.7]} 15... Qc2 {[%clk 0:01:45.6]} 16. Qa3
{[%clk 0:01:09.9]} 16... Ne5 {[%clk 0:01:36.2]} 17. Rc1 {[%clk 0:00:57.9]} 17...
Nxf3+ {[%clk 0:01:30.5]} 18. gxf3 {[%clk 0:00:57.2]} 18... Qd2# {[%clk
0:01:29.3]} 0-1

[Event "Betsys MČR v online bleskovém šachu 2021"]
[Site "Chess.com"]
[Date "2021.04.17"]
[Round "2"]
[White "FormerProdigy"]
[Black "JindrichT_CZE"]
[Result "1-0"]
[WhiteElo "2856"]
[BlackElo "2097"]
[TimeControl "180+1"]
[EndTime "9:14:46 PDT"]
[Termination "Uživatel FormerProdigy zvítězil po vzdání soupeře"]

1. d4 {[%clk 0:03:00.9]} 1... d5 {[%clk 0:02:59.4]} 2. c4 {[%clk 0:03:00.6]}
2... e6 {[%clk 0:02:57.7]} 3. Nc3 {[%clk 0:02:59.9]} 3... Nf6 {[%clk 0:02:54.6]}
4. cxd5 {[%clk 0:03:00.1]} 4... exd5 {[%clk 0:02:54.1]} 5. Bg5 {[%clk
0:02:59.7]} 5... Nbd7 {[%clk 0:02:52.1]} 6. e3 {[%clk 0:02:59.4]} 6... c6 {[%clk
0:02:51.5]} 7. Bd3 {[%clk 0:02:59.3]} 7... Be7 {[%clk 0:02:49.4]} 8. Nge2 {[%clk
0:02:56.6]} 8... O-O {[%clk 0:02:48.6]} 9. O-O {[%clk 0:02:53.7]} 9... Re8
{[%clk 0:02:48.2]} 10. Qc2 {[%clk 0:02:51.2]} 10... Ne4 {[%clk 0:02:43]} 11.
Bxe7 {[%clk 0:02:12.4]} 11... Qxe7 {[%clk 0:02:42.2]} 12. Rae1 {[%clk
0:02:08.6]} 12... Ndf6 {[%clk 0:02:37.2]} 13. f3 {[%clk 0:02:08.1]} 13... Nxc3
{[%clk 0:02:11.2]} 14. Nxc3 {[%clk 0:02:09]} 14... Bd7 {[%clk 0:02:11]} 15. Qf2
{[%clk 0:02:07.1]} 15... Qd6 {[%clk 0:02:03.4]} 16. h3 {[%clk 0:02:03.2]} 16...
Re7 {[%clk 0:01:57.8]} 17. e4 {[%clk 0:01:58.5]} 17... dxe4 {[%clk 0:01:53]} 18.
fxe4 {[%clk 0:01:59.4]} 18... Qc7 {[%clk 0:01:44.5]} 19. e5 {[%clk 0:01:57.3]}
19... Nd5 {[%clk 0:01:41.9]} 20. Qh4 {[%clk 0:01:47.3]} 20... g6 {[%clk
0:00:57.2]} 21. Nxd5 {[%clk 0:01:46.8]} 21... cxd5 {[%clk 0:00:56.7]} 22. Qxe7
{[%clk 0:01:46.7]} 1-0

[Event "Betsys MČR v online bleskovém šachu 2021"]
[Site "Chess.com"]
[Date "2021.04.17"]
[Round "2"]
[White "ritchi12"]
[Black "pohoda1966"]
[Result "0-1"]
[WhiteElo "1166"]
[BlackElo "1720"]
[TimeControl "180+1"]
[EndTime "9:14:48 PDT"]
[Termination "Uživatel pohoda1966 zvítězil matem"]

1. e4 {[%clk 0:02:59.5]} 1... e5 {[%clk 0:02:59.5]} 2. Nf3 {[%clk 0:02:59.5]}
2... Nc6 {[%clk 0:02:58.8]} 3. Nc3 {[%clk 0:02:59.6]} 3... Be7 {[%clk
0:02:57.8]} 4. d4 {[%clk 0:02:58.7]} 4... d6 {[%clk 0:02:57]} 5. d5 {[%clk
0:02:57.2]} 5... Nb8 {[%clk 0:02:56]} 6. Bb5+ {[%clk 0:02:54.5]} 6... c6 {[%clk
0:02:55.7]} 7. dxc6 {[%clk 0:02:53.5]} 7... bxc6 {[%clk 0:02:55.4]} 8. Ba4
{[%clk 0:02:53.1]} 8... Bd7 {[%clk 0:02:54.9]} 9. O-O {[%clk 0:02:52]} 9... Nf6
{[%clk 0:02:54.8]} 10. Bg5 {[%clk 0:02:50.7]} 10... O-O {[%clk 0:02:54.2]} 11.
Nh4 {[%clk 0:02:49.5]} 11... h6 {[%clk 0:02:50.6]} 12. Bxf6 {[%clk 0:02:48.8]}
12... Bxf6 {[%clk 0:02:49.8]} 13. Nf5 {[%clk 0:02:48.9]} 13... Qc7 {[%clk
0:02:36.8]} 14. Qf3 {[%clk 0:02:47]} 14... Na6 {[%clk 0:02:34.6]} 15. a3 {[%clk
0:02:44.1]} 15... Nc5 {[%clk 0:02:33.3]} 16. b4 {[%clk 0:02:40.5]} 16... Nxa4
{[%clk 0:02:29.6]} 17. Nxa4 {[%clk 0:02:40.1]} 17... c5 {[%clk 0:02:29.8]} 18.
bxc5 {[%clk 0:02:38.9]} 18... Bxa4 {[%clk 0:02:28.8]} 19. cxd6 {[%clk 0:02:37]}
19... Qc5 {[%clk 0:02:14.5]} 20. c3 {[%clk 0:02:35.2]} 20... Bd7 {[%clk
0:02:13.9]} 21. Rab1 {[%clk 0:02:30.8]} 21... Bxf5 {[%clk 0:02:13.1]} 22. exf5
{[%clk 0:02:28.3]} 22... Qxd6 {[%clk 0:02:13.2]} 23. Rfd1 {[%clk 0:02:27.3]}
23... Qc5 {[%clk 0:02:03.3]} 24. Rbc1 {[%clk 0:02:26.1]} 24... Qxa3 {[%clk
0:01:58.2]} 25. c4 {[%clk 0:02:24.8]} 25... Qxf3 {[%clk 0:01:57.2]} 26. gxf3
{[%clk 0:02:23.3]} 26... Bg5 {[%clk 0:01:55]} 27. Kg2 {[%clk 0:02:23.2]} 27...
Bxc1 {[%clk 0:01:54.1]} 28. Rxc1 {[%clk 0:02:23.5]} 28... Rfc8 {[%clk
0:01:53.5]} 29. Kg3 {[%clk 0:02:20.9]} 29... a5 {[%clk 0:01:53.4]} 30. Kg4
{[%clk 0:02:19.7]} 30... a4 {[%clk 0:01:53.5]} 31. Kh5 {[%clk 0:02:18.9]} 31...
a3 {[%clk 0:01:53]} 32. f6 {[%clk 0:02:19.1]} 32... g6+ {[%clk 0:01:47.8]} 33.
Kxh6 {[%clk 0:02:18.1]} 33... a2 {[%clk 0:01:45.3]} 34. Ra1 {[%clk 0:02:16.6]}
34... Rxc4 {[%clk 0:01:44.1]} 35. Kg5 {[%clk 0:02:09.4]} 35... Rb4 {[%clk
0:01:42.3]} 36. Rxa2 {[%clk 0:02:06.9]} 36... Rxa2 {[%clk 0:01:41]} 37. h4
{[%clk 0:02:06]} 37... Rxf2 {[%clk 0:01:40.1]} 38. h5 {[%clk 0:02:05.7]} 38...
gxh5 {[%clk 0:01:40.1]} 39. Kxh5 {[%clk 0:02:03.7]} 39... Rxf3 {[%clk 0:01:40]}
40. Kg5 {[%clk 0:02:02.2]} 40... e4 {[%clk 0:01:39]} 41. Kh6 {[%clk 0:02:00.3]}
41... e3 {[%clk 0:01:35.8]} 42. Kg5 {[%clk 0:02:00.4]} 42... e2 {[%clk
0:01:35.1]} 43. Kh5 {[%clk 0:01:59.1]} 43... e1=Q {[%clk 0:01:33.7]} 44. Kg5
{[%clk 0:01:58.7]} 44... Qe5+ {[%clk 0:01:30.8]} 45. Kh6 {[%clk 0:01:56.7]}
45... Rh4# {[%clk 0:01:30.3]} 0-1